{"text_format":"1","workbook":"xlsx","n_sheets":1,"sheets":["Tabelle1"],"not_rendered":{"charts":0,"images":0,"macros":1,"external_links":0,"defined_names":70,"comments":1,"pivot_tables":0},"unopened":[],"bounds":{"document_bytes":16777216,"sheet_cells":100000,"rows_first":2000,"rows_last":500,"rows_between":2000,"halvings":0,"cell_chars":16384,"cell_head_chars":4096},"cells_cut":0,"cells_raw":0,"read":"whole","date_system":"1900"}

{"sheet":"Tabelle1","index":0,"n_rows":32,"n_cols":69,"rows_kept":32,"cut":false,"hidden":false,"merged":[]}
["OZ","Typ","Beschreibung","Langtext","Menge","Einheit","EP [EUR]","GP [EUR]","TB Anzahl","TB1 Ansprache","TB1 Bietertext","TB1 Absprache","TB2 Ansprache","TB2 Bietertext","TB2 Absprache","TB3 Ansprache","TB3 Bietertext","TB3 Absprache","TB4 Ansprache","TB4 Bietertext","TB4 Absprache","TB5 Ansprache","TB5 Bietertext","TB5 Absprache","TB6 Ansprache","TB6 Bietertext","TB6 Absprache","TB7 Ansprache","TB7 Bietertext","TB7 Absprache","TB8 Ansprache","TB8 Bietertext","TB8 Absprache","TB9 Ansprache","TB9 Bietertext","TB9 Absprache","TB10 Ansprache","TB10 Bietertext","TB10 Absprache","TB11 Ansprache","TB11 Bietertext","TB11 Absprache","TB12 Ansprache","TB12 Bietertext","TB12 Absprache","TB13 Ansprache","TB13 Bietertext","TB13 Absprache","TB14 Ansprache","TB14 Bietertext","TB14 Absprache","TB15 Ansprache","TB15 Bietertext","TB15 Absprache","TB16 Ansprache","TB16 Bietertext","TB16 Absprache","TB17 Ansprache","TB17 Bietertext","TB17 Absprache","TB18 Ansprache","TB18 Bietertext","TB18 Absprache","TB19 Ansprache","TB19 Bietertext","TB19 Absprache","TB20 Ansprache","TB20 Bietertext","TB20 Absprache"]
[null,null,"Rodungsarbeiten",null,null,null,null,{"$f":"H4+H8+H17+H26","v":null}]
[null,"I","Baubeschreibung","Baubeschreibung\n\n1. Situation und Erschließung\nDas Plangebiet des zukünftigen Kanaluferparks erstreckt sich südlich des Rhein-Herne-Kanals von der Altenessener Straße (Zweigertbrücke) im Westen bis zur Stadtgrenze von Gelsenkirchen im Osten. Im südlichen Anschluss befinden sich die Schurenbachhalde und das geplante Wohnquartier \"Altenessener Straße/Nordsternstraße.\n\nDas Plangebiet ist in weiten Teilen von Gehölzflächen geprägt. Es umfasst weiterhin den am Fuß der Schurenbachhalde verlaufenden Geh- und Radweg, die ehemalige: Zechenbahntrasse, die Fernwärmeleitung sowie Ruderalflächen im Osten des Plangebietes.\n\nDie topografische Situation mit vielen z.T. steilen Böschungen und Höhenwechseln schafft unterschiedliche Ebenen, die dazu führen, dass die beschriebenen Erschließungswege kaum miteinander verbunden sind. Der Kern des Planungsgebiets wird heute nicht aktiv genutzt und ist teilweise als Barriere zwischen den Wohngebieten und dem Rhein-Herne-Kanal wahrnehmbar.\n\nDie Gehölzflächen bestehen überwiegend aus heimischen Laubgehölzen. Zu den Wegen hin ist überwiegend ein Strauch-, als auch ein Krautsaum vorgelagert.\nNeben älteren Gehölzflächen mit einem Brusthöhendurchmesser von 14 bis 38 cm (mittleres Baumholz), die eine gemischte Artenzusammensetzung aufweisen, sind Birkensukzessionsgehölze jüngeren Alters vorhanden, sowie größere Brombeergebüsche.\nGrößere gehölzfreie bzw. gehölzarme Bereiche befinden sich am Ostende des Plangebietes und auf der geschotterten ehemaligen Gleistrasse. Im Osten des Plangebietes handelt es sich um grasreiche Ruderalfluren und Neophytenbestände (Staudenknöterich). \nDas Plangebiet ist von Osten über die Emscherstraße anfahrbar. Die asphaltierte Straße am nördlichen Fuß der Schurenbachhalde kann als Ost-West-Erschließung im Gebiet genutzt werden\n\nAb ca. der Hälfte der Schurenbachhalde kann das Gelände über eine bewachsene Schotterfläche Richtung Norden bis zur ehemaligen Gleistrasse erschlossen werden. Dort sind keine gebauten Wege vorhanden.\n\nZiel der Planung ist die Verknüpfung der bereits existierenden Wege untereinander herzustellen, sowie der Ausbau einer getrennten Fuß- und Radwegeverbindung in Ost-West Richtung.\nDie zentral verlaufende Schottertrasse der ehemaligen Zechenbahn dient hierzu als Grundgerüst.\nAn wichtigen Wegkreuzungen und Aufweitungen werden Aufenthaltsplätze hergestellt. Ein Erlebnisweg bringt den Besuchern die ansässige Kreuzkröte näher.\n\nFür die geplanten Maßnahmen muss in Teilbereichen die vorhandene Vegetation gerodet werden. Es handelt sich vorrangig um Sukzessionsflächen mit Einzelbäumen.\nIn Teilabschnitten wird an Böschungsflächen gerodet.\n\nAusführungszeitraum bis zum 28. Februar 2026\n\nBesonderheiten\nZu beachten ist, dass auf den vorhandenen Wegeflächen ein jahreszeitabhängig hohes Radverkehrsaufkommen herrscht.\nDie oberirdisch verlaufende Fernwärmeleitung der iqony ist zu berücksichtigen. Beschädigungen an diesen und anderen Leitungen sind dem AG und dem zuständigen Leitungsträger umgehend zu melden und auf Kosten des AN zu beheben.\n\nDas Aufasten von Bäumen im geschlossenen Baumbestand \nim Böschungsbereich, zwischen Fernwärmeleitung (Dehnungsbauwerk) und Rhein-Herne-Kanal ist nur mit Kleingeräten möglich. Der Bereich ist vom Kanaluferweg erreichbar.\n\nDas Schnittgut soll größtenteils weiter auf der Fläche genutzt werden. Entsprechend ist dieses nicht zu häckseln und nach Angabe der BÜ gesichert zu lagern.\n\nAufwuchs und Anlagen, wie Leitungen, Durchlässe, Einfriedungen und dergleichen dürfen erst beseitigt werden, wenn das Einverständnis des AG vorliegt. Der AN hat dafür zu sorgen, dass Hydranten, Absperrschieber, Entwässerungs- und sonstige Abdeckungen frei zugänglich gehalten werden.\n\nDurch Boden- oder sonstige Materialbewegungen verunreinigten Straßen, Wege und Plätze sind täglich zu säubern. Bei der Durchführung von Arbeiten mit schwerem Gerät ist darauf zu achten, dass in den Kronenbereichen vorhandener Bäume nur mit äußerster Vorsicht gearbeitet wird. Arbeiten in den Kronenbereichen sind nur auf das äußerst notwendigste zu beschränken (die DIN 18920 und ZTV-Baumpflege sind dringendst zu beachten)! Eventuelle Beschädigungen sind umgehend zu melden und auf Kosten des AN fachgerecht zu behandeln (z.B. Wurzeln ab 3 cm Durchmesser).\nKronenbereiche vorhandener Bäume und Gehölze dürfen ohne Schutz gegen Druckschäden nicht überfahren werden.\n\nDer AG wird eine ökologische Baubegleitung beauftragen, da das Bearbeitungsgebiet u.a. zum Habitatverbund der Kreuzkröte gehört. \nDes Weiteren sind Teile der Bestandsbäume aufgrund der besonderen Habitatstrukturen zu erhalten. \n\nErreichbarkeit\nDie Baustelle ist von der Emscherstraße anfahrbar. \n\nGeräteeinsatz\nEs dürfen ausschließlich Maschinen und Geräte zum Einsatz kommen, die den Vorschriften zum Schutz gegen Baulärm und den Bestimmungen des Immissionsschutzes entsprechen, sowie mit abbaubarem Hydrauliköl betrieben werden.\n\nEtwaige Behinderungen durch örtliche Gegebenheiten sind zu berücksichtigen. \nAlle Auflagen der Gewerbeaufsicht sind zu erfüllen.\n\nKampfmittelverdachtsfläche\nBei den zu bearbeiteten Flächen handelt es sich um ein ehemaliges Bombenabwurfgebiet. Sämtliche tiefbautechnischen Arbeiten sind mit entsprechender Vorsicht und Sorgfalt auszuführen.\nWerden vor Beginn oder während der Ausführung auf der Baustelle gefährliche Gegenstände (z.B. Sprengkörper, Munition, Waffen) gefunden, so sind die Arbeiten im Gefahrenbereich sofort einzustellen, die nächste Polizeidienststelle, die Ordnungsbehörde und der AG sofort zu benachrichtigen. Die Gefahrenstelle ist abzusperren. Die Arbeiten dürfen erst nach Beseitigung der Gefahr fortgesetzt werden.\nAnsprechpartner im Notfall:\nFrau Butter, Tel. 0201-88 32127\n\nVom Auftragnehmer verursachte Schäden an Wegen, vegetationstechnischen oder sonstigen Einrichtungs- oder Ausstattungsgegenständen sind von diesem auf eigene Kosten wieder instandzusetzen.\n\nAllgemeine Hinweise\n\nAlle Leistungen umfassen die Lieferung der\ndazugehörigen Stoffe und Bauteile einschließlich abladen und lagern auf der Baustelle, wenn in der Leistungsbeschreibung nichts anderes vorgeschrieben ist, sowie die Verwertung bzw. Deponierung unter Anwendung des Kreislaufwirtschaftsgesetzes. Bei der Angabe \"entsorgen\" oder \"zur Deponie transportieren\" in einem Leistungstext ist immer die Entrichtung der Deponiegebühren bzw. der Verwertungskosten Leistungsbestandteil und bei der Kalkulation der Einheitspreise zu berücksichtigen.\nAuf abweichende Regelungen wird im Text ausdrücklich hingewiesen.\n\nDer Auftragnehmer hat die Leistung im eigenen Betrieb auszuführen. Mit schriftlicher Zustimmung des Auftraggebers darf er sie an Nachunternehmer übertragen. Die Zustimmung ist nicht notwendig bei Leistungen, auf die der Betrieb des Auftragnehmers nicht eingerichtet ist (VOB/B § 4 Abs. 8).zu erfüllen."]
["01","1","Baustellensicherung","Baustellensicherung",null,null,null,{"$f":"Sum(H5:H7)","v":null}]
["01.1"," ","Baustelleneinrichtung","Einrichten der Baustelle mit den erforderlichen \nGeräten, Unterkünften, erforderlichen Anschlüssen und \nsonstigen Anlagen.\nHerrichten der Bau- und Lagerplätze, Zu- und Abfahrten, Umsetzen der Einrichtungen soweit für die Ausführung \nder Bauleistung notwendig, einschließlich Vorhaltung \nder Baustelleneinrichtung für die Bauzeit und Räumung \nnach Beendigung der Arbeiten mit Wiederherstellung der \nin Anspruch genommenen Flächen.",1,"psch",null,{"$f":"ROUND(E5*G5,2)","v":null},0]
["01.2"," ","Leitungsauskunft","Durch Arbeiten des nachfolgenden Leistungstextes \nbesteht die Möglichkeit, dass Verkehrs-, Versorgungs- \nund Entsorgungsanlagen berührt werden, die im Baugrund \nliegen.\nBei den Versorgungsbetrieben sind eigenverantwortlich \nKabel- bzw. Leitungspläne anzufordern und die Lage der \nLeitungen ist zu erkunden. Die Leitungspläne sind dem \nAuftraggeber auf Verlangen vorzulegen, ansonsten \nentfällt die Vergütung in dieser Position.\nEtwaigen Anordnungen ist Folge zu leisten.\nBei vom Auftragnehmer verursachten Schäden, trotz \nvorheriger Erkundung, haftet dieser und ist für die \nordnungsgemäße Instandsetzung verantwortlich.\nIn dieser Pauschalposition wird der Gesamtaufwand des \nAuftragnehmers für alle Baustellen (für die Gesamtheit \naller Bauabschnitte) innerhalb der Ausschreibung bzw. \nfür das vorliegende Los einmalig vergütet.",1,"psch",null,{"$f":"ROUND(E6*G6,2)","v":null},0]
["01.3"," ","Flexible Absperrungen","Flexiblen Bauzaun auf befestigten Flächen aufbauen, vorhalten bis Ende Mai 2026, nach Bedarf umsetzen, sowie regelmäßiges Öffnen und Schließen des Bauzauns und nach Bauabschluss wieder entfernen.\nZaunhöhe: ca. 200 cm.\nEinzelsegmente aus geschweißtem, feuerverzinktem Stahlrohrrahmen, Füllung aus Stahlstabgittern, umsteckbar in Betonfüße mit entsprechenden Bohrungen, bzw. konstruktiv vergleichbare Bauarten. Randabschluss der Einzelsegmente ohne herausstehende Zaunzinken. Die Einzelsegmente sind mit Verschlusselementen zu verschrauben.",56,"m",null,{"$f":"ROUND(E7*G7,2)","v":null},0]
["02","1","Rodungsarbeiten","Rodungsarbeiten",null,null,null,{"$f":"Sum(H9:H16)","v":null}]
["02.1"," ","Flächenbewuchs roden H 300-500","Flächenbewuchs, Gehölze jeglicher Art bis 30 cm Stammdurchmesser mit Wurzelwerk roden\nHöhe: über 300 cm bis 500 cm\nAnfallendes Holz mit Wurzelwerk wird Eigentum des AN und ist zu entsorgen. \nDas Aufmaß erfolgt vor Arbeitsbeginn in Abstimmung mit der zuständigen Bauleitung.",1650,"m²",null,{"$f":"ROUND(E9*G9,2)","v":null},0]
["02.2"," ","Flächenbewuchs schneiden H 500-800","Flächenbewuchs, Gehölze jeglicher Art bis 30 cm Stammdurchmesser auf Stock setzen und zur Lagerstelle innerhalb des Baufeldes transportieren.\nHöhe: über 500 cm bis 800 cm.\nTransportweglänge: bis 500m\nDas Aufmaß erfolgt vor Arbeitsbeginn in Abstimmung mit der zuständigen Bauleitung.",2450,"m²",null,{"$f":"ROUND(E10*G10,2)","v":null},0]
["02.3"," ","Zulage Wurzelwerk roden","Zulage zur Vorposition\nfür das Roden des Wurzelwerks und Entsorgung",2450,"m²",null,{"$f":"ROUND(E11*G11,2)","v":null},0]
["02.4"," ","Flächenbewuchs auf Stock setzen H 500-800","Flächenbewuchs, Gehölze jeglicher Art, bodeneben \nabschneiden bzw. auf Stock setzen und zur Lagerstelle innerhalb des Baufeldes transportieren.\nHöhe: über 500 cm bis 800 cm\nTransportweglänge: bis 500m\nDas Aufmaß erfolgt vor Arbeitsbeginn in Abstimmung mit der zuständigen Bauleitung.\n\nBereich Dehnungsbauwerk Fernwärmeleitung\nHaselnussaufwuchs in der Böschung",80,"m²",null,{"$f":"ROUND(E12*G12,2)","v":null},0]
["02.5","I","Baumstubben entfernen","Baumstubben entfernen\nAnmerkung\nBaumstubben jeglicher Art an unterschiedlichen Standorten vollständig entfernen, d.h. oberirdische Teile (inkl. evtl. vorhandener Stockausschläge) ab- und unterirdische Teile mit geeignetem Gerät ausfräsen oder ausbaggern. Fräsgut oder ausgebaggerten Stubben laden und zur Deponie transportieren.\nEntstandene Löcher mit humosem Oberboden gemäß DIN 18915 Vegetationstechnik im Landschaftsbau- Bodenarbeiten bis Planumhöhe verfüllen und lagenweise verdichten, wenn nichts anderes in den speziellen Anmerkungen zum Bauvorhaben gefordert wird.\nAbgerechnet wird nach cm Gesamtfräsleistung verteilt auf mehrere Stubben an verschiedenen Standorten (hierbei ist die Berechnungsgrundlage der Durchmesser des bodenabgesägten Baumstubbens) oder Anzahl der ausgebaggerten Stubben, gestaffelt nach Durchmesser des Wurzeltellers. Bei elliptisch geformten Stubben/Wurzeltellern ergibt sich der Durchmesser aus der Addition der kürzesten und der längsten Strecke, dividiert durch \"2\". Der gemesseneStubbendurchmesser wird mit dem Faktor \"1,6\" multipliziert, um die tatsächliche Fräsleistung des unterirdischen Wurzelbereiches und die eventuelle Erhöhung des Stubbendurchmessers an der Schnittstelle abzubilden.\nDie Messung wird vor Beginn der Arbeiten durchgeführt, und alle dabei festgestellten Abweichungen von den im Rahmen der Ausschreibung mitgeteilten Daten sind der städtischen Bauleitung mitzuteilen.\nAuf den Einsatz eines Pflanzlochbohrers und einer Wurzelfräse ist möglichst zu verzichten. Der Einsatz einer Wurzelratte hat sich als optimal erwiesen und sollte beim Entfernen der Wurzelstubben Verwendung finden.",null,null,null,null,0]
["02.5"," ","Baumstubben durch Ausfräsen vollständig entfernen","Baumstubben durch Ausfräsen vollständig entfernen (cm-Angabe umfasst mehrere Exemplare verschiedener Standorte).\nFrästiefe: bis 40 cm",500,"cm",null,{"$f":"ROUND(E14*G14,2)","v":null},0]
["02.6"," ","Baum  aufasten","Baum auf ca. 3m Höhe nach Angabe der BÜ aufasten.\nArt: Buche, Robinie\nAnfallendes Holz wird Eigentum des AN und ist zu entsorgen. \nDas Aufmaß erfolgt vor Arbeitsbeginn in Abstimmung \nmit der zuständigen Bauleitung.",5,"St",null,{"$f":"ROUND(E15*G15,2)","v":null},0]
["02.7"," ","Sukzessionsflächen 2 x mähen.","Sukzessionsflächen 2 x mähen.\nMähgut wird Eigentum des AN und ist sofort zu entsorgen. \nBewuchshöhe: bis ca. 150cm \n\n1. Mahd bis 28.Februar \n2. Mahd April/Mai, Termin in Abstimmung mit AG",6750,"m²",null,{"$f":"ROUND(E16*G16,2)","v":null},0]
["03","1","Baumfällarbeiten","Baumfällarbeiten",null,null,null,{"$f":"Sum(H19:H25)","v":null}]
["03.1","I","Bäume fällen ohne Roden der Wurzelstöcke","Bäume fällen ohne Roden der Wurzelstöcke\nAnmerkung\nDer Fällschnitt muss so oberflächennah wie möglich angesetzt werden, wenn in den Leistungspositionen oder der Vorbemerkung nichts anderes gefordert wird.\nDas anfallende Stamm- und Astholz wird Eigentum des AN und ist arbeitstäglich abzufahren, wenn nichts anderes im Leistungsverzeichnis gefordert wird.\nVorhalten von Arbeits- und Transportgeräten sowie Gestellung von Arbeitskräften. Schutz- und Sicherheitsmaßnahmen nach den Unfallverhütungs- und den ordnungsbehördlichen Vorschriften treffen. Dieses sind Nebenleistungen ohne gesonderte Vergütung.\nGemessen wird der Stammdurchmesser in 1 Meter Höhe über Boden- bzw. Planumhöhe. Das Aufmaß erfolgt vor Arbeitsbeginn nach Stückzahl.\nBei Reststämmen wird der Stammdurchmesser an der vorhandenen Schnittstelle gemessen.\n\nFür kontaminierte Bäume gilt:\nAlle befallenen Bäume sind komplett zu entfernen. Diese sind vor Ort mit fortlaufenden Nummern markiert.\nSiehe hierzu Abarbeitungsliste.\nEine Bürgerinformation bezüglich der Arbeiten und damit verbundenen Verhaltensweisen (geschlossene Fenster) erfolgt über die Bauüberwachung des Auftraggebers.\nEs wird zum Schutz des eingesetzten Baumpflegepersonals vorgegeben, Einweg-Schutzanzüge (gegen Stäube) und Partikel-Atemmasken der Schutzklasse P3 mit Ausatemventil zu tragen. Die zusätzlich notwendige PSA ist durch den Auftragnehmer zu stellen und in die Einzelpreise einzukalkulieren.\nDie Bäume sind abschnittsweise zu fällen, das Schnittgut ist ohne vorheriges Häckseln in Container oder Transportfahrzeuge mit Abdeckung zu laden.",null,null,null,null,0]
["03.1"," ","Bäume fällen D 11-20","Bäume fällen.\nStammdurchmesser: über 10 cm bis 20 cm.",4,"St",null,{"$f":"ROUND(E19*G19,2)","v":null},0]
["03.2"," ","Bäume fällen D 21-30","Bäume fällen.\nStammdurchmesser: über 20 cm bis 30 cm.",6,"St",null,{"$f":"ROUND(E20*G20,2)","v":null},0]
["03.3"," ","Bäume fällen D 31-40","Bäume fällen\nStammdurchmesser: über 30 cm bis 40 cm.",2,"St",null,{"$f":"ROUND(E21*G21,2)","v":null},0]
["03.4","I","Bäume fällen mit Roden bzw. Ausfräsen der Wurzelstöcke","Bäume fällen mit Roden bzw. Ausfräsen der Wurzelstöcke\nAnmerkung\nDas anfallende Stamm-, Astholz und die Wurzelstöcke sind arbeitstäglich abzufahren, wenn nichts anderes im Leistungstext gefordert wird.\nEntstandene Löcher mit Boden gemäß DIN 18915, Bodengruppe 3 bis 4, auf Planumhöhe verfüllen und verdichten.\nVorhalten von Arbeits- und Transportgeräten sowie Gestellung von Arbeitskräften. Schutz- und Sicherungsmaßnahmen nach den Unfallverhütungs- und Polizei- und Ordnungsvorschriften treffen. Dieses sind Nebenleistungen ohne gesonderte Vergütung.\nGemessen wird der Stammdurchmesser 1 Meter über Planumhöhe. Das Aufmaß erfolgt vor dem Arbeitsbeginn nach Stückzahl.",null,null,null,null,0]
["03.4"," ","Bäume fällen D 11-20","Bäume fällen mit vollständiger Entfernung der Wurzelstöcke.\nStammdurchmesser: über 11 cm bis 20 cm.",3,"St",null,{"$f":"ROUND(E23*G23,2)","v":null},0]
["03.5"," ","Bäume fällen D 21-30","Bäume fällen mit vollständiger Entfernung der Wurzelstöcke.\nStammdurchmesser: über 20 cm bis 30 cm.",2,"St",null,{"$f":"ROUND(E24*G24,2)","v":null},0]
["03.6"," ","Bäume fällen D 31-40","Bäume fällen mit vollständiger Entfernung der Wurzelstöcke.\nStammdurchmesser: über 30 cm bis 40 cm.",1,"St",null,{"$f":"ROUND(E25*G25,2)","v":null},0]
["04","1","Räumungsarbeiten","Räumungsarbeiten",null,null,null,{"$f":"Sum(H28:H32)","v":null}]
["04.1","I","Vorbemerkung","Anmerkung\nBearbeitungs- und sonstige Flächen von Unrat nach Angaben des AG säubern bzw. Boden mit Bauschutt und sonstigen Verunreinigungen sowie Böden nach DIN 18300 abtragen/aufnehmen.\nUnrat sind alle Bodenfremden und pflanzenschädlichen Stoffe, die den Boden verschlechtern, vegetationstechnische Arbeiten behindern und den Pflanzenwuchs hemmen oder stören. In diesem Sinne zählen u. a. zum Unrat: Glas, Asche und Schlacken, Bauwerksreste, Baurückstände, Plastikmaterial, Papier, schwer zersetzbare Pflanzenteile u. a..",null,null,null,null,0]
["04.1"," ","Unrat von Bearbeitungsflächen auflesen","Unrat von Bearbeitungsflächen auflesen,\nim Baustellenbereich transportieren, auf messbare Mieten setzen, laden und zur Deponie transportieren.\nDie Mieten müssen vor der Abfuhr mit dem zuständigen Bauleiter aufgemessen werden.",5,"m³",null,{"$f":"ROUND(E28*G28,2)","v":null},0]
["04.2"," ","Bauschutt/Baurückstände/Unrat auflesen","Bauschutt/Baurückstände/Unrat auflesen, auf messbare Mieten setzen, laden und zur Deponie transportieren. Vor der Abfuhr sind die Mieten mit dem zuständigen Bauleiter aufzumessen.",5,"m³",null,{"$f":"ROUND(E29*G29,2)","v":null},0]
["04.3"," ","Grünabfälle auflesen","Grünabfälle, z.B. Rasenschnitt, Astwerk, Stammholz, Gehölzschnitt, Blätter und sonstige kompostierbaren Grünabfälle auflesen, im Baustellenbereich transportieren, auf messbare Mieten setzen, laden und zur Deponie transportieren.\nDie Mieten müssen vor der Abfuhr mit dem zuständigen Bauleiter aufgemessen werden.\nEs handelt sich überwiegend um Gehölzschnittgut und Rasenschnittgut.",5,"m³",null,{"$f":"ROUND(E30*G30,2)","v":null},0]
["04.4","I","Vorbemerkung","Anmerkung\nDas Entsorgen von eventuell vorhandenen Armierungen in Beton- oder Mauerwerken ist Bestandteil der Leistung und wird nicht gesondert vergütet.\nGleiches gilt für ein vorhandenes Filtervlies beim Ausbau von Einkornbeton.",null,null,null,null,0]
["04.4"," ","Fundamente aus Beton abbrechen","Fundamente aus Beton abbrechen, laden und zur Deponie transportieren.\nFundamentstärke/Betonart:Fundamente in unterschiedlichen Größen bis ca. 200 x 50 x 70 cm,\nteilweise bewehrt",5,"m³",null,{"$f":"ROUND(E32*G32,2)","v":null},0]